[Event "Titled Tuesday Blitz January 25 2022"]
[White "Abarca Gonzalez, Nicolas"]
[Black "Bortnyk, Olexandr"]
[WhiteFideId "3409422"]
[BlackFideId "14120828"]
[WhiteElo "2504"]
[BlackElo "2723"]
[Result "1/2-1/2"]
[Round "10"]
[TimeControl "180+1"]
[Date "2022.01.26"]
[WhiteClock "0:00:11"]
[BlackClock "0:00:05"]

1. e4 {[%clk 0:03:00]}  Nf6 {[%clk 0:02:56]} 2. Nc3 {[%clk 0:02:57]}  d5 {[%clk 0:02:56]} 3. e5 {[%clk 0:02:55]}  Nfd7 {[%clk 0:02:56]} 4. e6 {[%clk 0:02:47]}  fxe6 {[%clk 0:02:57]} 5. d4 {[%clk 0:02:46]}  c5 {[%clk 0:02:57]} 6. Nf3 {[%clk 0:02:44]}  Nc6 {[%clk 0:02:56]} 7. dxc5 {[%clk 0:02:35]}  g6 {[%clk 0:02:56]} 8. Nd4 {[%clk 0:02:30]}  Ndb8 {[%clk 0:02:35]} 9. h4 {[%clk 0:02:19]}  Bg7 {[%clk 0:02:32]} 10. Nxc6 {[%clk 0:02:17]}  Nxc6 {[%clk 0:02:33]} 11. h5 {[%clk 0:02:18]}  Qa5 {[%clk 0:02:30]} 12. Bd2 {[%clk 0:02:16]}  Qxc5 {[%clk 0:02:29]} 13. hxg6 {[%clk 0:02:16]}  hxg6 {[%clk 0:02:28]} 14. Rxh8+ {[%clk 0:02:17]}  Bxh8 {[%clk 0:02:28]} 15. Qg4 {[%clk 0:02:15]}  Ne5 {[%clk 0:02:24]} 16. Qh3 {[%clk 0:02:12]}  Bf6 {[%clk 0:02:22]} 17. Bb5+ {[%clk 0:02:03]}  Nc6 {[%clk 0:02:05]} 18. Bd3 {[%clk 0:01:52]}  Ne5 {[%clk 0:01:50]} 19. Bb5+ {[%clk 0:01:51]}  Nc6 {[%clk 0:01:29]} 20. Bd3 {[%clk 0:01:44]}  e5 {[%clk 0:01:30]} 21. Bxg6+ {[%clk 0:01:41]}  Kd8 {[%clk 0:01:30]} 22. Qh7 {[%clk 0:01:37]}  Be6 {[%clk 0:01:23]} 23. O-O-O {[%clk 0:01:33]}  Kc7 {[%clk 0:01:17]} 24. Be3 {[%clk 0:01:26]}  d4 {[%clk 0:01:16]} 25. Ne4 {[%clk 0:01:25]}  Qb4 {[%clk 0:00:43]} 26. Bd2 {[%clk 0:01:17]}  Bg8 {[%clk 0:00:38]} 27. Qh2 {[%clk 0:01:06]}  Qa4 {[%clk 0:00:22]} 28. Nxf6 {[%clk 0:00:51]}  Qxa2 {[%clk 0:00:19]} 29. Bg5 {[%clk 0:00:47]}  exf6 {[%clk 0:00:20]} 30. Bxf6 {[%clk 0:00:47]}  Qe6 {[%clk 0:00:19]} 31. Bg7 {[%clk 0:00:27]}  Rf8 {[%clk 0:00:19]} 32. Bxf8 {[%clk 0:00:23]}  Qxg6 {[%clk 0:00:19]} 33. f4 {[%clk 0:00:20]}  Qf5 {[%clk 0:00:13]} 34. Bg7 {[%clk 0:00:16]}  Bh7 {[%clk 0:00:05]} 35. g4 {[%clk 0:00:15]}  Qxf4+ {[%clk 0:00:02]} 36. Qxf4 {[%clk 0:00:14]}  exf4 {[%clk 0:00:03]} 37. Bxd4 {[%clk 0:00:15]}  Kd6 {[%clk 0:00:04]} 38. Bxa7+ {[%clk 0:00:15]}  Ke5 {[%clk 0:00:04]} 39. Bb6 {[%clk 0:00:14]}  f3 {[%clk 0:00:04]} 40. Bf2 {[%clk 0:00:13]}  Kf4 {[%clk 0:00:04]} 41. Rg1 {[%clk 0:00:13]}  Bg6 {[%clk 0:00:01]} 42. g5 {[%clk 0:00:13]}  Nb4 {[%clk 0:00:02]} 43. Kd2 {[%clk 0:00:12]}  Nxc2 {[%clk 0:00:02]} 44. Bg3+ {[%clk 0:00:12]}  Ke4 {[%clk 0:00:02]} 45. Bf2 {[%clk 0:00:09]}  Kf4 {[%clk 0:00:02]} 46. Rc1 {[%clk 0:00:08]}  Kxg5 {[%clk 0:00:02]} 47. Rxc2 {[%clk 0:00:08]}  Bxc2 {[%clk 0:00:02]} 48. Kxc2 {[%clk 0:00:09]}  Kg4 {[%clk 0:00:03]} 49. Kd3 {[%clk 0:00:09]}  Kh3 {[%clk 0:00:04]} 50. Ke3 {[%clk 0:00:09]}  Kg2 {[%clk 0:00:04]} 51. b3 {[%clk 0:00:10]}  b6 {[%clk 0:00:04]} 52. b4 {[%clk 0:00:09]}  b5 {[%clk 0:00:03]} 53. Be1 {[%clk 0:00:10]}  Kf1 {[%clk 0:00:04]} 54. Bh4 {[%clk 0:00:10]}  Kg2 {[%clk 0:00:04]} 55. Bf2 {[%clk 0:00:10]}  Kf1 {[%clk 0:00:05]} 56. Kxf3 {[%clk 0:00:11]} 1/2-1/2


[Site "https://www.chess.com"]

[Event "Titled Tuesday Blitz January 25 2022"]
[White "Arabidze, Meri"]
[Black "Navalgund, Niranjan"]
[WhiteFideId "13604040"]
[BlackFideId "5030854"]
[WhiteElo "2329"]
[BlackElo "2290"]
[Result "1-0"]
[Round "10"]
[TimeControl "180+1"]
[Date "2022.01.26"]
[WhiteClock "0:01:50"]
[BlackClock "0:02:21"]

1. Nf3 {[%clk 0:03:00]}  Nf6 {[%clk 0:02:59]} 2. d4 {[%clk 0:03:01]}  d5 {[%clk 0:02:59]} 3. c4 {[%clk 0:03:01]}  c5 {[%clk 0:02:59]} 4. dxc5 {[%clk 0:02:56]}  e6 {[%clk 0:02:59]} 5. Nc3 {[%clk 0:02:51]}  Bxc5 {[%clk 0:02:59]} 6. cxd5 {[%clk 0:02:51]}  exd5 {[%clk 0:02:58]} 7. e3 {[%clk 0:02:49]}  O-O {[%clk 0:02:58]} 8. Be2 {[%clk 0:02:49]}  Nc6 {[%clk 0:02:58]} 9. O-O {[%clk 0:02:49]}  d4 {[%clk 0:02:59]} 10. Na4 {[%clk 0:02:49]}  Bd6 {[%clk 0:02:54]} 11. Nxd4 {[%clk 0:02:45]}  Re8 {[%clk 0:02:52]} 12. Nxc6 {[%clk 0:02:39]}  bxc6 {[%clk 0:02:52]} 13. b3 {[%clk 0:02:34]}  Qc7 {[%clk 0:02:38]} 14. h3 {[%clk 0:02:34]}  Ne4 {[%clk 0:02:25]} 15. Bb2 {[%clk 0:02:30]}  c5 {[%clk 0:02:25]} 16. Nc3 {[%clk 0:02:16]}  Ng5 {[%clk 0:02:21]} 17. Nb5 {[%clk 0:02:10]}  Bh2+ {[%clk 0:02:21]} 18. Kh1 {[%clk 0:02:10]}  Qb8 {[%clk 0:02:22]} 19. f4 {[%clk 0:01:57]}  Rxe3 {[%clk 0:02:21]} 20. Qd8+ {[%clk 0:01:50]} 1-0


[Site "https://www.chess.com"]

[Event "Titled Tuesday Blitz January 25 2022"]
[White "Barria Zuniga, Daniel"]
[Black "Bethke, Richard"]
[WhiteFideId "3400816"]
[BlackFideId "12959243"]
[WhiteElo "2414"]
[BlackElo "2455"]
[Result "1/2-1/2"]
[Round "10"]
[TimeControl "180+1"]
[Date "2022.01.26"]
[WhiteClock "0:00:06"]
[BlackClock "0:00:04"]

1. d4 {[%clk 0:02:58]}  Nf6 {[%clk 0:02:57]} 2. c4 {[%clk 0:02:58]}  e6 {[%clk 0:02:57]} 3. Nf3 {[%clk 0:02:57]}  d5 {[%clk 0:02:58]} 4. Nc3 {[%clk 0:02:56]}  Be7 {[%clk 0:02:57]} 5. Bg5 {[%clk 0:02:53]}  O-O {[%clk 0:02:54]} 6. Qc2 {[%clk 0:02:52]}  h6 {[%clk 0:02:51]} 7. Bxf6 {[%clk 0:02:52]}  Bxf6 {[%clk 0:02:52]} 8. O-O-O {[%clk 0:02:52]}  dxc4 {[%clk 0:02:24]} 9. e4 {[%clk 0:02:44]}  a6 {[%clk 0:02:24]} 10. Bxc4 {[%clk 0:02:40]}  b5 {[%clk 0:02:24]} 11. Bb3 {[%clk 0:02:40]}  Bb7 {[%clk 0:02:20]} 12. e5 {[%clk 0:02:40]}  Bg5+ {[%clk 0:02:17]} 13. Kb1 {[%clk 0:02:40]}  Nd7 {[%clk 0:02:09]} 14. h4 {[%clk 0:02:34]}  Be7 {[%clk 0:02:08]} 15. d5 {[%clk 0:02:34]}  exd5 {[%clk 0:02:06]} 16. Nxd5 {[%clk 0:02:35]}  Rc8 {[%clk 0:02:02]} 17. Nf4 {[%clk 0:02:13]}  Qe8 {[%clk 0:01:32]} 18. e6 {[%clk 0:02:12]}  Nc5 {[%clk 0:01:32]} 19. exf7+ {[%clk 0:02:08]}  Rxf7 {[%clk 0:01:33]} 20. Rhe1 {[%clk 0:01:21]}  Nxb3 {[%clk 0:01:25]} 21. Qxb3 {[%clk 0:01:22]}  Kh7 {[%clk 0:01:11]} 22. Qc2+ {[%clk 0:01:16]}  Kg8 {[%clk 0:01:11]} 23. Qb3 {[%clk 0:01:07]}  Bxf3 {[%clk 0:01:00]} 24. gxf3 {[%clk 0:01:03]}  Rd8 {[%clk 0:01:00]} 25. Rxd8 {[%clk 0:00:47]}  Qxd8 {[%clk 0:01:01]} 26. Ng6 {[%clk 0:00:45]}  Bf6 {[%clk 0:00:46]} 27. Nh8 {[%clk 0:00:30]}  Kxh8 {[%clk 0:00:43]} 28. Qxf7 {[%clk 0:00:30]}  Qd3+ {[%clk 0:00:42]} 29. Ka1 {[%clk 0:00:27]}  Bxb2+ {[%clk 0:00:41]} 30. Kxb2 {[%clk 0:00:27]}  Qd2+ {[%clk 0:00:42]} 31. Kb3 {[%clk 0:00:27]}  Qxe1 {[%clk 0:00:41]} 32. Qf8+ {[%clk 0:00:26]}  Kh7 {[%clk 0:00:41]} 33. Qf5+ {[%clk 0:00:26]}  Kg8 {[%clk 0:00:41]} 34. Qc8+ {[%clk 0:00:23]}  Kh7 {[%clk 0:00:42]} 35. Qf5+ {[%clk 0:00:23]}  Kg8 {[%clk 0:00:41]} 36. Qc8+ {[%clk 0:00:23]}  Kf7 {[%clk 0:00:41]} 37. Qxc7+ {[%clk 0:00:23]}  Kf6 {[%clk 0:00:42]} 38. Qf4+ {[%clk 0:00:17]}  Ke7 {[%clk 0:00:37]} 39. Qc7+ {[%clk 0:00:14]}  Kf8 {[%clk 0:00:37]} 40. Qc8+ {[%clk 0:00:13]}  Kf7 {[%clk 0:00:29]} 41. Qb7+ {[%clk 0:00:13]}  Kg8 {[%clk 0:00:25]} 42. Qxa6 {[%clk 0:00:12]}  Qxf2 {[%clk 0:00:24]} 43. Qxb5 {[%clk 0:00:12]}  Qxf3+ {[%clk 0:00:24]} 44. Kb4 {[%clk 0:00:12]}  Kh7 {[%clk 0:00:14]} 45. a4 {[%clk 0:00:11]}  Qf4+ {[%clk 0:00:13]} 46. Qc4 {[%clk 0:00:11]}  Qd2+ {[%clk 0:00:14]} 47. Kb3 {[%clk 0:00:10]}  g5 {[%clk 0:00:09]} 48. hxg5 {[%clk 0:00:10]}  hxg5 {[%clk 0:00:10]} 49. Qe4+ {[%clk 0:00:08]}  Kh6 {[%clk 0:00:10]} 50. Qc6+ {[%clk 0:00:07]}  Kh5 {[%clk 0:00:10]} 51. Qb5 {[%clk 0:00:07]}  Kh4 {[%clk 0:00:09]} 52. a5 {[%clk 0:00:07]}  g4 {[%clk 0:00:09]} 53. a6 {[%clk 0:00:07]}  Qd1+ {[%clk 0:00:07]} 54. Kb4 {[%clk 0:00:07]}  Qe1+ {[%clk 0:00:06]} 55. Kc5 {[%clk 0:00:06]}  Qe3+ {[%clk 0:00:07]} 56. Kd6 {[%clk 0:00:05]}  g3 {[%clk 0:00:07]} 57. Qb7 {[%clk 0:00:05]}  Qd4+ {[%clk 0:00:06]} 58. Kc7 {[%clk 0:00:05]}  Qc5+ {[%clk 0:00:03]} 59. Kb8 {[%clk 0:00:05]}  Kh3 {[%clk 0:00:03]} 60. a7 {[%clk 0:00:05]}  Qd6+ {[%clk 0:00:03]} 61. Kc8 {[%clk 0:00:04]}  Qc5+ {[%clk 0:00:03]} 62. Kb8 {[%clk 0:00:04]}  Qd6+ {[%clk 0:00:03]} 63. Kc8 {[%clk 0:00:04]}  Qf8+ {[%clk 0:00:03]} 64. Kc7 {[%clk 0:00:04]}  Qf7+ {[%clk 0:00:03]} 65. Kb6 {[%clk 0:00:05]}  Qxb7+ {[%clk 0:00:03]} 66. Kxb7 {[%clk 0:00:05]}  g2 {[%clk 0:00:04]} 67. a8=Q {[%clk 0:00:05]}  g1=Q {[%clk 0:00:04]} 68. Qh8+ {[%clk 0:00:05]}  Kg2 {[%clk 0:00:04]} 69. Qg7+ {[%clk 0:00:05]}  Kh1 {[%clk 0:00:04]} 70. Qxg1+ {[%clk 0:00:06]}  Kxg1 {[%clk 0:00:04]} 1/2-1/2


[Site "https://www.chess.com"]

[Event "Titled Tuesday Blitz January 25 2022"]
[White "Belov, Vladimir"]
[Black "Shuvalov, Evgenij"]
[WhiteFideId "4132394"]
[BlackFideId "4187237"]
[WhiteElo "2501"]
[BlackElo "2119"]
[Result "1-0"]
[Round "10"]
[TimeControl "180+1"]
[Date "2022.01.26"]
[WhiteClock "0:00:10"]
[BlackClock "0:00:11"]

1. d4 {[%clk 0:03:00]}  Nf6 {[%clk 0:02:55]} 2. c4 {[%clk 0:03:01]}  g6 {[%clk 0:02:53]} 3. Nc3 {[%clk 0:03:01]}  d5 {[%clk 0:02:53]} 4. cxd5 {[%clk 0:03:00]}  Nxd5 {[%clk 0:02:54]} 5. e4 {[%clk 0:03:00]}  Nxc3 {[%clk 0:02:54]} 6. bxc3 {[%clk 0:03:01]}  Bg7 {[%clk 0:02:54]} 7. Nf3 {[%clk 0:03:02]}  c5 {[%clk 0:02:54]} 8. h3 {[%clk 0:03:02]}  O-O {[%clk 0:02:53]} 9. Be2 {[%clk 0:03:01]}  Qc7 {[%clk 0:02:52]} 10. O-O {[%clk 0:02:58]}  b6 {[%clk 0:02:52]} 11. Bg5 {[%clk 0:02:55]}  Bb7 {[%clk 0:02:50]} 12. Qd3 {[%clk 0:02:55]}  Nc6 {[%clk 0:02:44]} 13. Rac1 {[%clk 0:02:32]}  Rad8 {[%clk 0:02:40]} 14. d5 {[%clk 0:02:29]}  Na5 {[%clk 0:02:30]} 15. c4 {[%clk 0:02:27]}  Ba6 {[%clk 0:02:28]} 16. Qe3 {[%clk 0:02:25]}  f6 {[%clk 0:02:14]} 17. Bf4 {[%clk 0:02:20]}  e5 {[%clk 0:02:12]} 18. Bh6 {[%clk 0:02:13]}  Bxh6 {[%clk 0:01:56]} 19. Qxh6 {[%clk 0:02:13]}  Nb7 {[%clk 0:01:55]} 20. Nd2 {[%clk 0:01:55]}  Nd6 {[%clk 0:01:55]} 21. a4 {[%clk 0:01:47]}  Bc8 {[%clk 0:01:52]} 22. Qe3 {[%clk 0:01:43]}  a5 {[%clk 0:01:39]} 23. Rb1 {[%clk 0:01:39]}  Bd7 {[%clk 0:01:38]} 24. Qa3 {[%clk 0:01:33]}  Rb8 {[%clk 0:01:37]} 25. Rfe1 {[%clk 0:01:26]}  Qd8 {[%clk 0:01:29]} 26. Bg4 {[%clk 0:01:23]}  Bxg4 {[%clk 0:01:19]} 27. hxg4 {[%clk 0:01:22]}  Qd7 {[%clk 0:01:20]} 28. f3 {[%clk 0:01:14]}  Kg7 {[%clk 0:01:18]} 29. Rb3 {[%clk 0:01:10]}  Rh8 {[%clk 0:01:17]} 30. Reb1 {[%clk 0:01:08]}  Qc7 {[%clk 0:01:15]} 31. Qb2 {[%clk 0:01:07]}  Nc8 {[%clk 0:01:03]} 32. g5 {[%clk 0:01:07]}  fxg5 {[%clk 0:01:01]} 33. Nf1 {[%clk 0:01:02]}  h5 {[%clk 0:00:58]} 34. Qd2 {[%clk 0:00:51]}  Qd8 {[%clk 0:00:52]} 35. Rb5 {[%clk 0:00:45]}  Nd6 {[%clk 0:00:49]} 36. R5b3 {[%clk 0:00:34]}  Re8 {[%clk 0:00:48]} 37. Ne3 {[%clk 0:00:28]}  g4 {[%clk 0:00:36]} 38. fxg4 {[%clk 0:00:24]}  Nxe4 {[%clk 0:00:36]} 39. Qd3 {[%clk 0:00:18]}  Nd6 {[%clk 0:00:35]} 40. gxh5 {[%clk 0:00:18]}  gxh5 {[%clk 0:00:34]} 41. Nf5+ {[%clk 0:00:19]}  Nxf5 {[%clk 0:00:33]} 42. Qxf5 {[%clk 0:00:20]}  h4 {[%clk 0:00:32]} 43. Qg4+ {[%clk 0:00:18]}  Kh6 {[%clk 0:00:31]} 44. Rh3 {[%clk 0:00:18]}  Qg5 {[%clk 0:00:27]} 45. Rxh4+ {[%clk 0:00:17]}  Kg6 {[%clk 0:00:27]} 46. Qh3 {[%clk 0:00:13]}  Re7 {[%clk 0:00:15]} 47. Rg4 {[%clk 0:00:13]}  Rg7 {[%clk 0:00:14]} 48. Rxg5+ {[%clk 0:00:12]}  Kxg5 {[%clk 0:00:15]} 49. Rf1 {[%clk 0:00:11]}  Rg6 {[%clk 0:00:11]} 50. Rf5# {[%clk 0:00:10]} 1-0


[Site "https://www.chess.com"]

[Event "Titled Tuesday Blitz January 25 2022"]
[White "Bodnaruk, Anastasia"]
[Black "Vivas Zamora, Fabian Ernesto"]
[WhiteFideId "4181751"]
[BlackFideId "3902480"]
[WhiteElo "2393"]
[BlackElo "1966"]
[Result "0-1"]
[Round "10"]
[TimeControl "180+1"]
[Date "2022.01.26"]
[WhiteClock "0:00:01"]
[BlackClock "0:00:04"]

1. e4 {[%clk 0:03:00]}  e5 {[%clk 0:02:59]} 2. Nf3 {[%clk 0:03:00]}  Nc6 {[%clk 0:02:59]} 3. Bb5 {[%clk 0:02:59]}  a6 {[%clk 0:02:58]} 4. Ba4 {[%clk 0:03:00]}  Nf6 {[%clk 0:02:58]} 5. O-O {[%clk 0:02:59]}  Be7 {[%clk 0:02:59]} 6. Re1 {[%clk 0:02:59]}  b5 {[%clk 0:02:57]} 7. Bb3 {[%clk 0:02:59]}  O-O {[%clk 0:02:57]} 8. a4 {[%clk 0:02:59]}  Bb7 {[%clk 0:02:43]} 9. d3 {[%clk 0:02:53]}  d5 {[%clk 0:02:16]} 10. c3 {[%clk 0:02:33]}  dxe4 {[%clk 0:01:45]} 11. dxe4 {[%clk 0:02:33]}  Na5 {[%clk 0:01:39]} 12. Nxe5 {[%clk 0:02:24]}  Nxe4 {[%clk 0:01:34]} 13. axb5 {[%clk 0:02:10]}  Bc5 {[%clk 0:00:39]} 14. Bxf7+ {[%clk 0:01:49]}  Rxf7 {[%clk 0:00:35]} 15. Qxd8+ {[%clk 0:01:48]}  Rxd8 {[%clk 0:00:35]} 16. Nxf7 {[%clk 0:01:48]}  Kxf7 {[%clk 0:00:27]} 17. Rxa5 {[%clk 0:01:38]}  Bxf2+ {[%clk 0:00:24]} 18. Kf1 {[%clk 0:01:38]}  Bxe1 {[%clk 0:00:24]} 19. Kxe1 {[%clk 0:01:38]}  axb5 {[%clk 0:00:23]} 20. Rxb5 {[%clk 0:01:36]}  Nd6 {[%clk 0:00:20]} 21. Rc5 {[%clk 0:01:31]}  Re8+ {[%clk 0:00:18]} 22. Kd1 {[%clk 0:01:27]}  Re7 {[%clk 0:00:15]} 23. Bg5 {[%clk 0:01:26]}  Rd7 {[%clk 0:00:15]} 24. Kc1 {[%clk 0:01:16]}  Bxg2 {[%clk 0:00:14]} 25. Bf4 {[%clk 0:01:14]}  h6 {[%clk 0:00:08]} 26. Nd2 {[%clk 0:01:11]}  g5 {[%clk 0:00:08]} 27. Bg3 {[%clk 0:01:04]}  Kg6 {[%clk 0:00:08]} 28. b4 {[%clk 0:00:58]}  h5 {[%clk 0:00:08]} 29. b5 {[%clk 0:00:51]}  h4 {[%clk 0:00:06]} 30. Bxd6 {[%clk 0:00:51]}  cxd6 {[%clk 0:00:07]} 31. Rc8 {[%clk 0:00:48]}  g4 {[%clk 0:00:05]} 32. Nc4 {[%clk 0:00:33]}  g3 {[%clk 0:00:05]} 33. hxg3 {[%clk 0:00:28]}  h3 {[%clk 0:00:05]} 34. Rg8+ {[%clk 0:00:13]}  Rg7 {[%clk 0:00:03]} 35. Rh8 {[%clk 0:00:01]}  Rh7 {[%clk 0:00:02]} 36. Rxh7 {[%clk 0:00:02]}  Kxh7 {[%clk 0:00:03]} 37. Ne3 {[%clk 0:00:01]}  h2 {[%clk 0:00:03]} 38. Nxg2 {[%clk 0:00:01]}  h1=Q+ {[%clk 0:00:04]} 0-1


[Site "https://www.chess.com"]

[Event "Titled Tuesday Blitz January 25 2022"]
[White "Daneshvar, Bardiya"]
[Black "Timofeev, Artyom"]
[WhiteFideId "12576468"]
[BlackFideId "4140419"]
[WhiteElo "2295"]
[BlackElo "2583"]
[Result "1/2-1/2"]
[Round "10"]
[TimeControl "180+1"]
[Date "2022.01.26"]
[WhiteClock "0:00:04"]
[BlackClock "0:00:09"]

1. d4 {[%clk 0:03:00]}  d5 {[%clk 0:02:59]} 2. c4 {[%clk 0:03:01]}  e6 {[%clk 0:02:59]} 3. Nc3 {[%clk 0:03:00]}  c6 {[%clk 0:02:59]} 4. e3 {[%clk 0:02:58]}  Nf6 {[%clk 0:02:58]} 5. Nf3 {[%clk 0:02:58]}  Nbd7 {[%clk 0:02:58]} 6. Qc2 {[%clk 0:02:51]}  Bd6 {[%clk 0:02:56]} 7. g4 {[%clk 0:02:51]}  Bb4 {[%clk 0:02:55]} 8. Bd2 {[%clk 0:02:42]}  Qe7 {[%clk 0:02:54]} 9. g5 {[%clk 0:02:39]}  Bxc3 {[%clk 0:02:54]} 10. Bxc3 {[%clk 0:02:33]}  Ne4 {[%clk 0:02:55]} 11. Bd3 {[%clk 0:02:33]}  Nxc3 {[%clk 0:02:53]} 12. Qxc3 {[%clk 0:02:32]}  O-O {[%clk 0:02:46]} 13. h4 {[%clk 0:02:11]}  dxc4 {[%clk 0:02:35]} 14. Bxc4 {[%clk 0:02:07]}  b6 {[%clk 0:02:32]} 15. h5 {[%clk 0:01:54]}  Bb7 {[%clk 0:02:32]} 16. h6 {[%clk 0:01:52]}  g6 {[%clk 0:02:26]} 17. d5 {[%clk 0:01:48]}  e5 {[%clk 0:02:22]} 18. d6 {[%clk 0:01:41]}  Qe8 {[%clk 0:02:14]} 19. O-O-O {[%clk 0:01:32]}  Kh8 {[%clk 0:02:12]} 20. Rh4 {[%clk 0:01:15]}  f5 {[%clk 0:02:00]} 21. gxf6 {[%clk 0:01:10]}  Rxf6 {[%clk 0:02:00]} 22. Ng5 {[%clk 0:01:03]}  c5 {[%clk 0:01:41]} 23. f4 {[%clk 0:00:45]}  Rd8 {[%clk 0:01:33]} 24. fxe5 {[%clk 0:00:30]}  Qxe5 {[%clk 0:01:33]} 25. Nf7+ {[%clk 0:00:24]}  Rxf7 {[%clk 0:01:33]} 26. Bxf7 {[%clk 0:00:24]}  Qxc3+ {[%clk 0:01:32]} 27. bxc3 {[%clk 0:00:25]}  Ne5 {[%clk 0:01:33]} 28. Rf4 {[%clk 0:00:20]}  Bf3 {[%clk 0:00:57]} 29. Rd2 {[%clk 0:00:13]}  Bh5 {[%clk 0:00:53]} 30. Rf1 {[%clk 0:00:06]}  Ng4 {[%clk 0:00:51]} 31. d7 {[%clk 0:00:05]}  Nxh6 {[%clk 0:00:51]} 32. Be8 {[%clk 0:00:05]}  Kg7 {[%clk 0:00:51]} 33. e4 {[%clk 0:00:06]}  Bg4 {[%clk 0:00:51]} 34. e5 {[%clk 0:00:05]}  Be6 {[%clk 0:00:47]} 35. Rf6 {[%clk 0:00:03]}  Bc4 {[%clk 0:00:46]} 36. Rfd6 {[%clk 0:00:02]}  Nf5 {[%clk 0:00:43]} 37. Rc6 {[%clk 0:00:03]}  Kf8 {[%clk 0:00:43]} 38. Rc8 {[%clk 0:00:03]}  Ke7 {[%clk 0:00:43]} 39. Rxd8 {[%clk 0:00:04]}  Kxd8 {[%clk 0:00:44]} 40. Rh2 {[%clk 0:00:04]}  Bg8 {[%clk 0:00:39]} 41. Kd2 {[%clk 0:00:05]}  Ke7 {[%clk 0:00:36]} 42. Kd3 {[%clk 0:00:05]}  Ng7 {[%clk 0:00:35]} 43. Ke4 {[%clk 0:00:05]}  Nxe8 {[%clk 0:00:35]} 44. dxe8=Q+ {[%clk 0:00:06]}  Kxe8 {[%clk 0:00:35]} 45. e6 {[%clk 0:00:06]}  Ke7 {[%clk 0:00:33]} 46. Ke5 {[%clk 0:00:06]}  b5 {[%clk 0:00:30]} 47. a3 {[%clk 0:00:05]}  a6 {[%clk 0:00:29]} 48. Rh6 {[%clk 0:00:04]}  a5 {[%clk 0:00:27]} 49. Rh2 {[%clk 0:00:05]}  g5 {[%clk 0:00:23]} 50. Rh5 {[%clk 0:00:04]}  Bxe6 {[%clk 0:00:21]} 51. Rxh7+ {[%clk 0:00:04]}  Bf7 {[%clk 0:00:22]} 52. Rg7 {[%clk 0:00:04]}  b4 {[%clk 0:00:22]} 53. cxb4 {[%clk 0:00:04]}  cxb4 {[%clk 0:00:22]} 54. axb4 {[%clk 0:00:05]}  axb4 {[%clk 0:00:22]} 55. Rxg5 {[%clk 0:00:05]}  b3 {[%clk 0:00:23]} 56. Rg4 {[%clk 0:00:06]}  Kd7 {[%clk 0:00:16]} 57. Rb4 {[%clk 0:00:06]}  Kc6 {[%clk 0:00:16]} 58. Kd4 {[%clk 0:00:06]}  Be6 {[%clk 0:00:16]} 59. Kc3 {[%clk 0:00:06]}  Bd5 {[%clk 0:00:16]} 60. Rh4 {[%clk 0:00:06]}  Kc5 {[%clk 0:00:15]} 61. Rh8 {[%clk 0:00:06]}  Be6 {[%clk 0:00:14]} 62. Re8 {[%clk 0:00:06]}  Kd6 {[%clk 0:00:14]} 63. Rb8 {[%clk 0:00:05]}  Kc7 {[%clk 0:00:14]} 64. Rb4 {[%clk 0:00:06]}  Kc6 {[%clk 0:00:14]} 65. Rh4 {[%clk 0:00:06]}  Kd6 {[%clk 0:00:14]} 66. Rh2 {[%clk 0:00:05]}  Kc6 {[%clk 0:00:15]} 67. Kd4 {[%clk 0:00:05]}  Kd6 {[%clk 0:00:14]} 68. Rh8 {[%clk 0:00:04]}  Kc6 {[%clk 0:00:10]} 69. Rb8 {[%clk 0:00:04]}  Bf7 {[%clk 0:00:10]} 70. Rb4 {[%clk 0:00:03]}  Be6 {[%clk 0:00:09]} 71. Rxb3 {[%clk 0:00:04]}  Bxb3 {[%clk 0:00:09]} 1/2-1/2


[Site "https://www.chess.com"]

[Event "Titled Tuesday Blitz January 25 2022"]
[White "Dastan, Muhammed Batuhan"]
[Black "Samadov, Read"]
[WhiteFideId "6300014"]
[BlackFideId "13417444"]
[WhiteElo "2410"]
[BlackElo "2084"]
[Result "0-1"]
[Round "10"]
[TimeControl "180+1"]
[Date "2022.01.26"]
[WhiteClock "0:00:39"]
[BlackClock "0:00:55"]

1. d4 {[%clk 0:03:00]}  Nf6 {[%clk 0:02:59]} 2. c4 {[%clk 0:02:59]}  e6 {[%clk 0:03:00]} 3. Nc3 {[%clk 0:02:58]}  Bb4 {[%clk 0:03:00]} 4. Qc2 {[%clk 0:02:58]}  d5 {[%clk 0:02:59]} 5. cxd5 {[%clk 0:02:57]}  exd5 {[%clk 0:02:59]} 6. Bg5 {[%clk 0:02:58]}  h6 {[%clk 0:02:59]} 7. Bh4 {[%clk 0:02:58]}  O-O {[%clk 0:02:59]} 8. e3 {[%clk 0:02:59]}  c5 {[%clk 0:03:00]} 9. dxc5 {[%clk 0:03:00]}  Nbd7 {[%clk 0:02:58]} 10. Nf3 {[%clk 0:02:58]}  Qa5 {[%clk 0:02:58]} 11. a3 {[%clk 0:02:19]}  Ne4 {[%clk 0:02:55]} 12. Rc1 {[%clk 0:01:55]}  Bxc3+ {[%clk 0:02:54]} 13. bxc3 {[%clk 0:01:55]}  g5 {[%clk 0:02:50]} 14. Bg3 {[%clk 0:01:55]}  Ndxc5 {[%clk 0:02:51]} 15. Be5 {[%clk 0:01:50]}  Qxa3 {[%clk 0:02:37]} 16. Be2 {[%clk 0:01:49]}  Bf5 {[%clk 0:02:35]} 17. Nd4 {[%clk 0:01:34]}  Bg6 {[%clk 0:02:25]} 18. Nb5 {[%clk 0:01:34]}  Qb3 {[%clk 0:02:08]} 19. Qxb3 {[%clk 0:01:34]}  Nxb3 {[%clk 0:02:08]} 20. Rd1 {[%clk 0:01:33]}  f6 {[%clk 0:01:56]} 21. Bg3 {[%clk 0:01:17]}  a6 {[%clk 0:01:47]} 22. Nc7 {[%clk 0:01:16]}  Nxc3 {[%clk 0:01:46]} 23. Nxa8 {[%clk 0:01:12]}  Rxa8 {[%clk 0:01:46]} 24. Rxd5 {[%clk 0:01:03]}  Nxd5 {[%clk 0:01:44]} 25. Bc4 {[%clk 0:01:04]}  Bf7 {[%clk 0:01:24]} 26. Bxb3 {[%clk 0:01:04]}  Nb4 {[%clk 0:01:24]} 27. Bxf7+ {[%clk 0:00:58]}  Kxf7 {[%clk 0:01:24]} 28. Ke2 {[%clk 0:00:56]}  Rc8 {[%clk 0:01:20]} 29. Rb1 {[%clk 0:00:55]}  Rc2+ {[%clk 0:01:19]} 30. Kf3 {[%clk 0:00:55]}  a5 {[%clk 0:01:18]} 31. Bd6 {[%clk 0:00:55]}  Rc4 {[%clk 0:01:18]} 32. Ra1 {[%clk 0:00:50]}  Nc6 {[%clk 0:01:18]} 33. Bc7 {[%clk 0:00:50]}  a4 {[%clk 0:01:16]} 34. Bb6 {[%clk 0:00:50]}  Ne5+ {[%clk 0:01:12]} 35. Kg3 {[%clk 0:00:48]}  Nd7 {[%clk 0:01:08]} 36. Bd4 {[%clk 0:00:48]}  b5 {[%clk 0:01:08]} 37. h4 {[%clk 0:00:47]}  Nc5 {[%clk 0:01:06]} 38. Rb1 {[%clk 0:00:38]}  Nb3 {[%clk 0:01:06]} 39. Bb2 {[%clk 0:00:38]}  b4 {[%clk 0:00:55]} 40. hxg5 {[%clk 0:00:38]}  hxg5 {[%clk 0:00:56]} 41. Kf3 {[%clk 0:00:39]}  Nd2+ {[%clk 0:00:55]} 0-1


[Site "https://www.chess.com"]